bitfinex-derivatives/quotes_ETHF0:USTF0_20250404
["timestamp","ask_amount","ask_price","bid_price","bid_amount"]
[1743807156933,6.09269,1820.7,1820.6,2.56875]
[1743807157129,4.59889,1820.7,1820.6,2.56875]
[1743807157635,3.5,1820.7,1820.6,2.56875]
[1743807159431,4.59889,1820.7,1820.6,2.56875]
[1743807159631,3.5,1820.7,1820.6,2.56875]
[1743807159834,4.59889,1820.7,1820.6,2.56875]
[1743807160028,6.01669,1820.7,1820.6,2.56875]
[1743807160631,4.9178,1820.7,1820.6,2.56875]
[1743807163241,1.4178,1820.7,1820.6,2.56875]
[1743807164143,2.51669,1820.7,1820.6,2.56875]
[1743807164643,1.4178,1820.7,1820.6,2.56875]
[1743807167045,2.51669,1820.7,1820.6,2.56875]
[1743807167246,2.51669,1820.7,1820.6,1.09895]
[1743807177351,2.51669,1820.7,1820.6,1.89121637]
[1743807177646,2.51669,1820.7,1820.6,3.38811637]
[1743807179644,2.51669,1820.7,1820.6,4.10706102]
[1743807180653,3.24619,1820.7,1820.6,4.10706102]
[1743807180839,3.24619,1820.7,1820.6,0.71894465]
[1743807181044,1.09925,1820.1,1819.9,0.00824516]
[1743807181253,1.09925,1820.1,1820.0,1.89222752]
[1743807181638,2.49035,1820.1,1820.0,1.89222752]
[1743807182648,2.49035,1820.1,1820.0,1.89190446]
[1743807183555,2.49035,1820.1,1820.0,1.89169419]
[1743807184047,2.49035,1820.1,1820.0,1.09927]
[1743807184646,1.3911,1820.1,1820.0,1.09927]
[1743807184852,2.49035,1820.1,1820.0,1.09927]
[1743807185155,2.49035,1820.1,1820.0,3.41022299]
[1743807185349,1.3911,1820.1,1820.0,3.41022299]
[1743807185549,4.59824,1820.2,1820.1,1.09925]
[1743807185851,4.59824,1820.2,1820.1,2.61805]
[1743807186244,3.499,1820.2,1820.1,2.61805]
[1743807186444,2.58268,1820.3,1820.2,1.09919]
[1743807186646,6.08168,1820.3,1820.2,3.31979]
[1743807187145,6.08168,1820.3,1820.2,2.2206]
[1743807187746,6.08168,1820.3,1820.2,3.31979]
[1743807192451,2.58263,1820.3,1820.2,3.31979]
[1743807192647,6.08163,1820.3,1820.2,3.31979]
[1743807193454,4.9825,1820.3,1820.2,3.31979]
[1743807193655,6.08163,1820.3,1820.2,3.31979]
[1743807195256,4.59813,1820.3,1820.2,3.31979]
[1743807195956,1.0991,1820.4,1820.3,1.09913]
[1743807196259,7.80581,1820.6,1820.5,1.09901]
[1743807196848,9.24561,1820.6,1820.5,1.09901]
[1743807197045,0.00824516,1820.8,1820.7,1.09889]
[1743807197255,3.50724516,1820.8,1820.7,1.09889]
[1743807197458,4.60607516,1820.8,1820.7,1.09889]
[1743807197657,3.50724516,1820.8,1820.7,1.09889]
[1743807197858,3.50724516,1820.8,1820.7,1.83869]
[1743807203157,0.00824516,1820.8,1820.7,1.83869]
[1743807211279,1.10707516,1820.8,1820.7,1.09889]
[1743807211578,1.85187516,1820.8,1820.7,1.09889]
[1743807211979,2.56667516,1820.8,1820.7,1.09889]
[1743807215280,1.46784516,1820.8,1820.7,1.09889]
[1743807215777,2.90474516,1820.8,1820.7,2.58739]
[1743807216481,2.15994516,1820.8,1820.7,2.58739]
[1743807216684,2.15994516,1820.8,1820.7,3.34979]
[1743807217987,3.25877516,1820.8,1820.7,3.34979]
[1743807221286,2.15994516,1820.8,1820.7,3.34979]
[1743807221988,3.25877516,1820.8,1820.7,3.34979]
[1743807224277,3.25877516,1820.8,1820.7,4.14363703]
[1743807225593,3.25877516,1820.8,1820.7,4.858979]
[1743807229191,3.25877516,1820.8,1820.7,4.09770195]
[1743807229394,3.25877516,1820.8,1820.7,2.60920195]
[1743807230282,3.25877516,1820.8,1820.7,1.89385998]
[1743807230792,3.25877516,1820.8,1820.7,2.60968124]
[1743807233597,3.25877516,1820.8,1820.7,4.01868124]
[1743807238600,3.25877516,1820.8,1820.7,4.01879722]
[1743807240489,3.25877516,1820.8,1820.7,4.01907104]
[1743807241302,3.25877516,1820.8,1820.7,1.51118104]
[1743807242303,3.25877516,1820.8,1820.7,2.61007104]
[1743807243704,3.25877516,1820.8,1820.7,4.03537104]
[1743807243892,3.25877516,1820.8,1820.7,3.31954978]
[1743807244696,3.25877516,1820.8,1820.7,4.03597292]
[1743807245302,3.25877516,1820.8,1820.7,3.24061314]
[1743807245503,3.25877516,1820.8,1820.7,4.03631336]
[1743807246592,3.25877516,1820.8,1820.7,3.31989022]
[1743807248308,3.96127516,1820.8,1820.7,3.31989022]
[1743807249204,3.96127516,1820.8,1820.7,2.22100022]
[1743807251705,3.96127516,1820.8,1820.7,2.97520022]
[1743807251898,1.10707516,1820.8,1820.7,4.07409022]
[1743807252300,1.10707516,1820.8,1820.7,4.79042888]
[1743807256112,0.00824516,1820.8,1820.7,4.79042888]
[1743807260314,0.00824516,1820.8,1820.7,4.79023298]
[1743807264621,1.10707516,1820.8,1820.7,4.79023298]
[1743807264811,0.00824516,1820.8,1820.7,4.79023298]
[1743807265612,1.10707516,1820.8,1820.7,4.79023298]
[1743807265825,0.00824516,1820.8,1820.7,4.79023298]
[1743807266611,0.00824516,1820.8,1820.7,4.79015545]
[1743807267819,1.10707516,1820.8,1820.7,4.79015545]
[1743807268117,3.99047516,1820.8,1820.7,3.31969386]
[1743807269712,3.99047516,1820.8,1820.7,3.32004743]
[1743807269913,4.60407516,1820.8,1820.7,4.03656258]
[1743807270114,1.10707516,1820.8,1820.7,4.03656258]
[1743807270314,0.00824516,1820.8,1820.7,4.03656258]
[1743807270515,1.10707516,1820.8,1820.7,4.03656258]
[1743807271221,0.00824516,1820.8,1820.7,4.03656258]
[1743807271721,0.00824516,1820.8,1820.7,4.03659974]
[1743807272114,1.0987,1821.1,1821.0,1.09866]
[1743807272316,1.0987,1821.1,1821.0,2.61106974]
[1743807272915,1.0987,1821.1,1821.0,3.33196974]
[1743807275624,1.0987,1821.1,1821.0,2.61541743]
[1743807275818,1.0987,1821.1,1821.0,1.81956]
[1743807276120,1.0987,1821.1,1821.0,2.6145778]
[1743807277325,1.0987,1821.1,1821.0,2.61440764]
[1743807278129,1.0987,1821.1,1821.0,1.81956]
[1743807279116,4.60388516,1821.2,1821.1,1.09865]
[1743807279320,4.60388516,1821.2,1821.1,3.31925]
[1743807286418,6.05198516,1821.2,1821.1,3.31925]
[1743807290931,2.62403,1821.5,1821.4,1.09847]
[1743807291134,6.12003,1821.5,1821.4,1.09847]
[1743807292527,6.12003,1821.5,1821.4,1.83607]
[1743807293835,6.12001,1821.5,1821.4,1.83607]
[1743807294829,5.0216,1821.5,1821.4,1.83607]
[1743807295034,3.496,1821.5,1821.4,2.58957]
[1743807295334,4.31441516,1821.6,1821.5,1.09841]
[1743807295529,4.31441516,1821.6,1821.5,2.50281]
[1743807295931,3.21604516,1821.6,1821.5,2.50281]
[1743807296137,4.31439516,1821.6,1821.5,2.50281]
[1743807297743,5.70109516,1821.6,1821.5,2.50281]
[1743807308149,2.49329516,1821.6,1821.5,2.50281]
[1743807318256,2.49329516,1821.6,1821.5,3.29761068]
[1743807320551,2.49329516,1821.6,1821.5,4.01408585]
[1743807322054,2.49329516,1821.6,1821.5,2.50281]
[1743807323055,2.49329516,1821.6,1821.5,4.01525351]
[1743807323657,2.49329516,1821.6,1821.5,4.01529907]
[1743807325554,2.49329516,1821.6,1821.5,4.0156113]
[1743807326851,2.49329516,1821.6,1821.5,4.01561104]
[1743807331260,2.49329516,1821.6,1821.5,4.015643]
[1743807331562,0.00824516,1821.6,1821.5,4.015643]
[1743807333058,1.10659516,1821.6,1821.5,4.015643]
[1743807334961,1.10659516,1821.6,1821.5,4.01553241]
[1743807336865,1.10659516,1821.6,1821.5,4.01548897]
[1743807338868,1.10659516,1821.6,1821.5,4.01545519]
[1743807339566,1.10659516,1821.6,1821.5,4.01544746]
[1743807339765,2.53139516,1821.6,1821.5,4.01544746]
[1743807344466,2.53139516,1821.6,1821.5,4.01544835]
[1743807346376,2.53139516,1821.6,1821.5,4.01545194]
[1743807348975,5.75109516,1821.6,1821.5,0.70011554]
[1743807349473,1.09841,1821.5,1821.4,1.09844]
[1743807349661,3.23721,1821.5,1821.4,1.89423198]
[1743807349971,6.73021,1821.5,1821.4,1.89423198]
[1743807350174,6.73021,1821.5,1821.4,1.89423162]
[1743807350969,0.72794516,1821.6,1821.5,1.09841]
[1743807351169,0.00824516,1821.6,1821.5,4.05760491]
[1743807353776,0.00824516,1821.6,1821.5,4.05728591]
[1743807359482,1.10659516,1821.6,1821.5,4.05692218]
[1743807359673,0.00824516,1821.6,1821.5,4.05692218]
[1743807360983,0.00824516,1821.6,1821.5,4.05692958]
[1743807361380,0.00824516,1821.6,1821.5,4.7725788]
[1743807361577,1.45324516,1821.6,1821.5,4.7725788]
[1743807362485,1.45324516,1821.6,1821.5,4.77268403]
[1743807365885,2.55159516,1821.6,1821.5,4.77268403]
[1743807366380,2.55159516,1821.6,1821.5,4.77280697]
[1743807366583,2.55159516,1821.6,1821.5,0.71564922]
[1743807366878,1.09847,1821.4,1821.3,1.09848]
[1743807367094,1.09847,1821.4,1821.3,1.8937211]
[1743807367288,1.09847,1821.4,1821.3,2.6096162]
[1743807367479,3.28987,1821.4,1821.3,2.6096162]
[1743807368082,3.28987,1821.4,1821.3,2.6096662]
[1743807369084,6.49767,1821.4,1821.3,0.7158951]
[1743807369282,8.99767,1821.4,1821.3,0.7158951]
[1743807369885,1.09871,1821.0,1820.9,3.37998516]
[1743807370182,1.09871,1821.0,1820.9,1.10701516]
[1743807370384,1.09871,1821.0,1820.9,0.00824516]
[1743807370579,2.55921,1821.0,1820.9,0.00824516]
[1743807370978,3.32051,1821.0,1820.9,0.00824516]
[1743807371489,6.52831,1821.0,1820.9,0.00824516]
[1743807382295,9.12782006,1821.0,1820.9,5.16e-06]
[1743807382591,1.09907,1820.4,1820.3,1.4065]
[1743807382793,7.80087,1820.4,1820.3,1.4065]
[1743807383392,9.26737,1820.4,1820.3,1.4065]
[1743807384892,9.26737,1820.4,1820.3,2.1473]
[1743807386887,7.80087,1820.4,1820.3,3.24643]
[1743807388793,4.59307,1820.4,1820.3,3.24643]
[1743807390300,0.00824516,1820.5,1820.4,1.09907]
[1743807390500,1.10725516,1820.5,1820.4,2.59887]
[1743807392901,0.00824516,1820.5,1820.4,2.59887]
[1743807393895,1.09882,1820.9,1820.8,1.09877]
[1743807394106,1.09875,1821.0,1820.9,1.09871]
[1743807394401,7.80049,1821.1,1821.0,1.09871]
[1743807394702,1.09872,1821.0,1820.9,1.09871]
[1743807395300,7.80874516,1821.1,1821.0,1.09871]
[1743807397402,3.21604516,1821.1,1821.0,1.09871]
[1743807397605,0.00824516,1821.1,1821.0,6.80651]
[1743807397904,38.103,1821.4,1821.3,1.09853]
[1743807398301,3.494,1821.4,1821.3,1.09853]
[1743807398499,1.09845,1821.5,1821.4,1.09847]
[1743807398699,4.59245,1821.5,1821.4,1.09847]
[1743807404503,4.59245,1821.5,1821.4,1.85307]
[1743807405608,4.59245,1821.5,1821.3,2.53026516]
[1743807405609,1.09847,1821.4,1821.3,2.53026516]
[1743807405904,3.32167,1821.4,1821.3,2.53026516]
[1743807407097,3.32167,1821.4,1821.3,0.00824516]
[1743807407297,2.74644,1821.3,1821.0,2.49255]
[1743807407497,1.09865,1821.1,1821.0,2.49255]
[1743807407903,2.56925,1821.1,1821.0,2.49255]
[1743807408099,2.56925,1821.1,1820.9,1.09872]
[1743807408100,1.09871,1821.0,1820.9,1.09872]
[1743807408298,4.6316,1821.0,1820.7,1.85214]
[1743807408503,8.53907,1820.9,1820.8,0.00824516]
[1743807408705,9.96287,1820.9,1820.8,0.00824516]
[1743807408905,12.46287,1820.9,1820.8,0.00824516]
[1743807410602,1.09901,1820.5,1820.4,1.4004]
[1743807410806,4.59201,1820.5,1820.4,1.4004]
[1743807413009,7.79981,1820.5,1820.4,1.4004]
[1743807413508,8.54261,1820.5,1820.4,1.4004]
[1743807415715,1.09907,1820.4,1820.3,1.10737516]
[1743807415907,2.52417,1820.4,1820.3,0.00824516]
[1743807416306,2.52417,1820.4,1820.3,1.45664516]
[1743807416618,2.52417,1820.4,1820.3,2.55577516]
[1743807417008,2.52417,1820.4,1820.3,1.45664516]
[1743807417204,2.52417,1820.4,1820.3,2.55577516]
[1743807418506,2.52417,1820.4,1820.3,1.45664516]
[1743807419116,2.52417,1820.4,1820.3,2.55577516]
[1743807419911,2.52417,1820.4,1820.3,1.45664516]
[1743807420211,2.52417,1820.4,1820.3,0.00824516]
[1743807425815,2.52417,1820.4,1820.3,1.53854516]
[1743807426211,1.09907,1820.4,1820.3,2.63767516]
[1743807426416,4.59307,1820.4,1820.3,2.63767516]
[1743807430320,1.09907,1820.4,1820.3,2.63767516]
[1743807436323,1.09907,1820.4,1820.3,3.42805481]
[1743807437125,1.09907,1820.4,1820.3,4.1393]
[1743807447336,1.09907,1820.4,1820.3,4.14094481]
[1743807447832,1.09907,1820.4,1820.3,4.14093863]
[1743807451425,1.09907,1820.4,1820.3,3.04180863]
[1743807451833,2.51547,1820.4,1820.3,3.04180863]
[1743807452130,5.72327,1820.4,1820.3,0.80026344]
[1743807452333,5.72327,1820.4,1820.3,0.00824516]
[1743807466939,8.22327,1820.4,1820.3,0.00824516]
[1743807468641,8.22327,1820.4,1820.3,5.16e-06]
[1743807468846,8.32271613,1820.4,1820.3,5.16e-06]
[1743807469048,8.22327,1820.4,1820.3,5.16e-06]
[1743807473647,8.22327,1820.4,1820.3,1.52100516]
[1743807475146,5.72327,1820.4,1820.3,1.52100516]
[1743807482959,4.30687,1820.4,1820.3,1.52100516]
[1743807483360,7.80087,1820.4,1820.3,1.52100516]
[1743807492577,4.59307,1820.4,1820.3,1.52100516]
[1743807492778,7.80087,1820.4,1820.3,1.52100516]
[1743807494480,1.09885,1820.8,1820.3,4.81346116]
[1743807494778,1.09885,1820.8,1820.7,1.09885]
[1743807494976,1.09885,1820.8,1820.7,1.891306]
[1743807495180,1.09885,1820.8,1820.7,4.894306]
[1743807495382,4.59282,1820.9,1820.8,1.09883]
[1743807495682,3.494,1820.9,1820.8,3.40117981]
[1743807495881,3.494,1820.9,1820.8,6.60897981]
[1743807496174,4.59277,1820.9,1820.8,6.60897981]
[1743807496878,1.09877,1820.9,1820.8,6.60897981]
[1743807498083,1.10699516,1821.0,1820.9,1.09877]
[1743807498274,1.10699516,1821.0,1820.9,2.62677]
[1743807499678,1.10699516,1821.0,1820.9,3.44476499]
[1743807499880,1.10699516,1821.0,1820.9,2.62677]
[1743807500878,1.10699516,1821.0,1820.9,1.528]
[1743807501681,2.54769516,1821.0,1820.9,1.528]
[1743807507882,1.09877,1820.9,1820.8,3.2078]
[1743807508184,6.08067,1820.9,1820.8,4.6675]
[1743807508781,1.09883,1820.8,1820.7,1.4914]
[1743807508983,3.33513,1820.8,1820.7,1.4914]
[1743807509184,3.33513,1820.8,1820.7,2.9484]
[1743807510189,1.09907,1820.4,1820.3,1.09912516]
[1743807510384,1.09907,1820.4,1820.3,1.85842516]
[1743807511881,1.09907,1820.4,1820.3,5.06622516]
[1743807512084,1.09907,1820.4,1820.3,5.48410516]
[1743807512487,1.09907,1820.4,1820.3,6.58323516]
[1743807512887,4.59204,1820.5,1820.3,5.48410516]
[1743807513188,1.09896,1820.6,1820.5,1.09901]
[1743807513391,1.09896,1820.6,1820.5,4.30681]
[1743807519295,1.09896,1820.6,1820.5,5.12558216]
[1743807519792,1.09896,1820.6,1820.5,4.30681]
[1743807520295,1.09896,1820.6,1820.5,5.12575686]
[1743807520495,1.09896,1820.6,1820.5,5.12564284]
[1743807520696,1.09895,1820.6,1820.5,5.12564284]
[1743807521194,1.09895,1820.6,1820.5,6.52143568]
[1743807521996,1.09895,1820.6,1820.5,6.52141635]
[1743807522294,1.09895,1820.6,1820.5,3.31361635]
[1743807522697,1.09895,1820.6,1820.5,2.49461]
[1743807523093,1.09895,1820.6,1820.5,3.31429471]
[1743807524397,2.58585,1820.6,1820.5,3.31429471]
[1743807525698,2.58585,1820.6,1820.5,6.52209471]
[1743807525995,2.58585,1820.6,1820.5,3.31429471]
[1743807526397,1.09895,1820.6,1820.5,3.31429471]
[1743807526792,1.09895,1820.6,1820.5,3.31469513]
[1743807528594,1.09895,1820.6,1820.5,6.52249513]
[1743807529101,1.09895,1820.6,1820.5,4.02788513]
[1743807529291,2.54455,1820.6,1820.5,4.02788513]
[1743807529598,2.54455,1820.6,1820.5,3.2078]
[1743807529802,2.54455,1820.6,1820.5,4.30681]
[1743807530001,2.54455,1820.6,1820.5,5.12739498]
[1743807530902,2.54455,1820.6,1820.5,1.91959498]
[1743807531798,1.09901,1820.5,1820.3,0.75930516]
[1743807532003,4.59207,1820.4,1820.3,5.16e-06]
[1743807532205,5.32997,1820.4,1820.3,0.82104879]
[1743807532504,6.77837,1820.4,1820.3,5.16e-06]
[1743807541009,2.54747,1820.4,1820.3,5.16e-06]
[1743807541310,6.04147,1820.4,1820.3,2.51703516]
[1743807541705,6.04147,1820.4,1820.3,1.41790516]
[1743807550215,4.59307,1820.4,1820.3,2.51703516]
[1743807550415,4.59307,1820.4,1820.3,3.33748825]
[1743807550721,1.09907,1820.4,1820.3,3.33748825]
[1743807552420,1.09907,1820.4,1820.3,4.04887737]
[1743807553716,1.09907,1820.4,1820.3,2.94974737]
[1743807554222,1.09907,1820.4,1820.3,2.51703516]
[1743807554526,1.09907,1820.4,1820.3,1.41790516]
[1743807554821,1.09907,1820.4,1820.3,2.51703516]
[1743807555116,1.09907,1820.4,1820.3,3.33775105]
[1743807557416,4.59307,1820.5,1820.4,1.09907]
[1743807557616,4.592,1820.6,1820.5,1.09895]
[1743807557817,4.592,1820.6,1820.5,3.36526589]
[1743807558022,4.59193,1820.7,1820.6,1.09889]
[1743807558224,1.09893,1820.7,1820.6,2.54449]
[1743807558523,4.59193,1820.7,1820.6,3.35483859]
[1743807558720,4.59193,1820.7,1820.6,3.35480016]
[1743807560623,4.59193,1820.7,1820.6,3.35426337]
[1743807561520,1.09893,1820.7,1820.6,3.35426337]
[1743807561728,4.59193,1820.7,1820.6,6.56206337]
[1743807562620,1.09889,1820.8,1820.7,1.09889]
[1743807562825,4.59189,1820.8,1820.7,4.86000779]
[1743807563025,4.59189,1820.8,1820.7,4.05069]
[1743807563917,4.59189,1820.8,1820.7,2.9518]
[1743807564123,5.28849,1820.8,1820.7,1.4745]
[1743807565824,1.09889,1820.7,1820.6,3.2078]
[1743807566032,3.28219,1820.7,1820.6,3.2078]
[1743807567436,3.28219,1820.7,1820.6,5.72655]
[1743807568037,3.28219,1820.7,1820.6,4.6276]
[1743807573234,3.28219,1820.7,1820.6,1.4198]
[1743807577844,1.09901,1820.5,1820.4,3.2078]
[1743807578042,1.09907,1820.4,1820.3,5.16e-06]
[1743807578337,4.13167,1820.4,1820.3,5.16e-06]
[1743807581643,9.83947,1820.4,1820.3,5.16e-06]
[1743807584045,7.33947,1820.4,1820.3,5.16e-06]
[1743807601959,6.59317,1820.4,1820.3,5.16e-06]
[1743807602261,4.59207,1820.4,1820.3,5.16e-06]
[1743807603061,4.59207,1820.4,1820.3,0.75600516]
[1743807603259,4.59207,1820.4,1820.3,1.49460516]
[1743807604761,1.09907,1820.4,1820.3,2.59373516]
[1743807604967,1.09907,1820.4,1820.3,5.90354796]
[1743807605261,1.09907,1820.4,1820.3,4.80441796]
[1743807605464,1.09907,1820.4,1820.3,5.90354796]
[1743807605664,1.09907,1820.4,1820.3,7.31064796]
[1743807608762,1.09907,1820.4,1820.3,7.31119614]
[1743807610664,1.09907,1820.4,1820.3,7.31097824]
[1743807611362,1.09907,1820.4,1820.3,7.31087117]
[1743807613070,1.09907,1820.4,1820.3,4.81087117]
[1743807614270,1.09907,1820.4,1820.3,4.81071007]
[1743807615166,1.09907,1820.4,1820.3,2.90170516]
[1743807615563,2.56487,1820.4,1820.3,2.90170516]
[1743807622478,1.09907,1820.4,1820.3,2.90170516]
[1743807623176,2.55467,1820.4,1820.3,2.90170516]
[1743807625078,2.55467,1820.4,1820.3,5.16e-06]
[1743807625577,2.55467,1820.4,1820.3,1.46500516]
[1743807630600,1.09907,1820.4,1820.3,1.46500516]
[1743807631893,1.09907,1820.4,1820.3,2.27556503]
[1743807634594,1.09907,1820.4,1820.3,2.27572332]
[1743807636395,1.09907,1820.4,1820.3,3.37485332]
[1743807636707,3.493,1820.8,1820.7,1.09885]
[1743807636904,4.59183,1820.8,1820.7,1.90956816]
[1743807637301,4.59183,1820.8,1820.7,3.38956816]
[1743807637601,4.59183,1820.8,1820.7,4.10124885]
[1743807638201,4.59183,1820.8,1820.7,3.38956816]
[1743807638594,4.59183,1820.8,1820.7,3.38863558]
[1743807639995,4.59183,1820.8,1820.7,4.09967213]
[1743807640196,3.493,1820.8,1820.7,4.09967213]
[1743807640598,3.493,1820.8,1820.7,4.09872472]
[1743807642498,3.493,1820.8,1820.7,4.09823751]
[1743807643604,3.493,1820.8,1820.7,3.38720096]
[1743807644199,3.493,1820.8,1820.7,3.38664128]
[1743807644508,3.493,1820.8,1820.7,2.57885]
[1743807644695,4.59183,1820.8,1820.7,2.57885]
[1743807645195,3.493,1820.8,1820.7,2.57885]
[1743807646000,4.59183,1820.8,1820.7,2.57885]
[1743807647207,4.59183,1820.8,1820.7,1.48]
[1743807647510,1.09907,1820.4,1820.3,5.16e-06]
[1743807647700,7.79887,1820.4,1820.3,5.16e-06]
[1743807648305,9.26797,1820.4,1820.3,5.16e-06]
[1743807651416,6.06017,1820.4,1820.3,5.16e-06]
[1743807657518,6.06017,1820.4,1820.3,1.38790516]
[1743807660315,4.59107,1820.4,1820.3,2.48703516]
[1743807661016,1.09906,1820.5,1820.4,1.09901]
[1743807661214,37.37925,1820.7,1820.5,1.09895]
[1743807661414,35.73089,1820.7,1820.6,1.4002]
[1743807661610,39.22289,1820.7,1820.6,1.4002]
[1743807661915,39.22289,1820.7,1820.6,2.49915]
[1743807664222,39.22289,1820.7,1820.6,1.4002]
[1743807665314,1.09895,1820.6,1820.5,3.2078]
[1743807665515,1.09907,1820.4,1820.3,2.56450516]
[1743807665718,1.09907,1820.4,1820.3,2.21250516]
[1743807666021,1.09907,1820.4,1820.3,5.16e-06]
[1743807666022,4.59107,1820.4,1820.3,5.16e-06]
[1743807666521,6.00707,1820.4,1820.3,5.16e-06]
[1743807667525,6.00707,1820.4,1820.3,1.45210516]
[1743807668226,6.00707,1820.4,1820.3,2.55123516]
[1743807669214,4.59107,1820.4,1820.3,2.55123516]
[1743807669418,0.7091,1820.5,1820.4,1.09902]
[1743807669419,4.59105,1820.5,1820.4,1.09902]
[1743807669616,4.59105,1820.5,1820.4,4.01572]
[1743807670320,4.59105,1820.5,1820.4,2.9167]
[1743807671118,4.59105,1820.5,1820.4,2.1834]
[1743807671322,5.33065,1820.5,1820.4,2.1834]
[1743807672730,1.09907,1820.4,1820.3,5.16e-06]
[1743807672930,2.58987,1820.4,1820.3,1.47310516]
[1743807673124,2.58987,1820.4,1820.3,2.57223516]
[1743807673532,2.58987,1820.4,1820.3,1.47310516]
[1743807673925,3.32957,1820.4,1820.3,1.47310516]
[1743807674126,3.32957,1820.4,1820.3,5.16e-06]
[1743807682430,3.32957,1820.4,1820.3,1.45890516]
[1743807684837,3.32957,1820.4,1820.3,2.55803516]
[1743807685638,3.32957,1820.4,1820.3,1.45890516]
[1743807686439,3.32957,1820.4,1820.3,2.19980516]
[1743807687331,3.492,1820.4,1820.3,7.31308998]
[1743807687532,1.09907,1820.4,1820.3,7.31308998]
[1743807687733,1.09907,1820.4,1820.3,4.10528998]
[1743807688438,1.09907,1820.4,1820.3,4.1052393]
[1743807688739,1.09907,1820.4,1820.3,4.81699155]
[1743807690740,1.09906,1820.5,1820.4,1.09901]
[1743807690940,1.09906,1820.5,1820.4,4.82306639]
[1743807691237,1.09906,1820.5,1820.4,4.82306231]
[1743807691837,1.09906,1820.5,1820.4,4.82305756]
[1743807692136,4.59089,1820.8,1820.7,1.09885]
[1743807692335,1.09895,1820.7,1820.6,1.09893]
[1743807692535,1.09895,1820.7,1820.6,4.06994822]
[1743807692938,1.09895,1820.7,1820.6,2.25926597]
[1743807693236,3.99385,1820.7,1820.6,1.4529]
[1743807693635,1.09901,1820.5,1820.4,0.7562]
[1743807693935,1.09901,1820.5,1820.4,2.66172448]
[1743807694132,1.09901,1820.5,1820.4,2.27452641]
[1743807694339,1.09907,1820.4,1820.3,0.74090516]
[1743807694537,1.09907,1820.4,1820.3,1.54751272]
[1743807694835,1.09907,1820.4,1820.3,2.26151272]
[1743807695039,1.09907,1820.4,1820.3,4.80574272]
[1743807695442,1.09907,1820.4,1820.3,5.51780405]
[1743807699248,1.09907,1820.4,1820.3,4.41867405]
[1743807699648,1.09907,1820.4,1820.3,5.51783177]
[1743807700343,1.09907,1820.4,1820.3,4.41870177]
[1743807700547,1.09907,1820.4,1820.3,5.51783177]
[1743807700747,1.09907,1820.4,1820.3,4.41870177]
[1743807701251,1.09907,1820.4,1820.3,3.70668959]
[1743807701652,1.09907,1820.4,1820.3,2.25178959]
[1743807701854,4.12267,1820.4,1820.3,5.16e-06]
[1743807703847,9.83047,1820.4,1820.3,5.16e-06]
[1743807704052,9.83047,1820.4,1819.7,3.2078]
[1743807704053,1.09943,1819.8,1819.7,7.34456]
[1743807704258,1.09943,1819.8,1819.7,7.32949321]
[1743807704850,1.09943,1819.8,1819.7,6.23003321]
[1743807705049,1.09943,1819.8,1819.7,7.32952321]
[1743807706648,1.09943,1819.8,1819.7,6.23003321]
[1743807706849,1.09943,1819.8,1819.7,5.51786679]
[1743807707350,1.09943,1819.8,1819.7,4.7111]
[1743807707757,1.09943,1819.8,1819.7,3.2078]
[1743807707951,1.09949,1819.7,1819.6,1.10776516]
[1743807708157,1.09949,1819.7,1819.6,1.91329389]
[1743807708957,1.09949,1819.7,1819.6,1.10776516]
[1743807709561,1.09949,1819.7,1819.6,0.00824516]
[1743807710062,2.53169,1819.7,1819.6,0.00824516]
[1743807711160,2.53169,1819.7,1819.6,1.10780516]
[1743807712160,2.53169,1819.7,1819.6,0.00824516]
[1743807712361,2.53169,1819.7,1819.6,1.10780516]
[1743807714453,2.53169,1819.7,1819.6,0.00824516]
[1743807714658,2.53169,1819.7,1819.6,1.10780516]
[1743807714851,2.53169,1819.7,1819.6,0.00824516]
[1743807715360,2.53169,1819.7,1819.6,1.10780516]
[1743807715661,2.53169,1819.7,1819.6,2.55030516]
[1743807716756,2.53169,1819.7,1819.6,1.45074516]
[1743807717461,2.53169,1819.7,1819.6,0.00824516]
[1743807718757,1.09968,1819.4,1819.3,1.4151]
[1743807718957,4.59368,1819.4,1819.3,1.4151]
[1743807719361,1.09974,1819.3,1819.2,1.4678]
[1743807719665,1.0998,1819.2,1819.1,1.4186]
[1743807719963,1.0998,1819.2,1819.1,1.42684516]
[1743807721063,1.0998,1819.2,1819.1,2.52670516]
[1743807721264,1.09978,1819.3,1819.2,1.09974]
[1743807721565,4.59578,1819.3,1819.2,2.51834]
[1743807722260,4.59578,1819.3,1819.2,1.4186]
[1743807724765,1.0998,1819.2,1819.1,1.10809516]
[1743807724964,2.6372,1819.2,1819.1,2.49659516]
[1743807725366,1.0998,1819.2,1819.1,2.49659516]
[1743807725862,4.59578,1819.3,1819.2,1.0998]
[1743807726071,4.59578,1819.3,1819.2,2.4947]
[1743807733258,4.59578,1819.3,1819.2,1.3949]
[1743807733466,4.59578,1819.3,1819.2,2.4947]
[1743807737860,6.11668,1819.3,1819.2,2.4947]
[1743807738265,6.11668,1819.3,1819.2,1.3949]
[1743807739267,4.59578,1819.3,1819.2,2.4947]
[1743807741075,5.99848,1819.3,1819.2,2.4947]
[1743807741672,1.09974,1819.3,1819.2,4.01197421]
[1743807742268,1.09974,1819.3,1819.2,3.30057645]
[1743807745172,4.59372,1819.4,1819.3,1.09974]
[1743807745373,4.59372,1819.4,1819.3,4.78486645]
[1743807747476,4.59372,1819.4,1819.3,5.4994888]
[1743807751280,4.59372,1819.4,1819.3,5.49958825]
[1743807752084,4.59372,1819.4,1819.3,4.69187255]
[1743807753283,4.59372,1819.4,1819.3,5.49959021]
[1743807753483,4.59372,1819.4,1819.3,4.69187255]
[1743807754175,4.59372,1819.4,1819.3,5.49959502]
[1743807754376,4.59372,1819.4,1819.3,4.69187255]
[1743807754575,4.59372,1819.4,1819.3,5.49960632]
[1743807755070,4.59372,1819.4,1819.3,4.69187255]
[1743807755776,4.59372,1819.4,1819.3,5.4996171]
[1743807757874,6.06732,1819.4,1819.3,5.4996171]
[1743807759076,6.06732,1819.4,1819.3,4.0161171]
[1743807761482,6.06732,1819.4,1819.3,3.20837255]
[1743807761684,1.1001,1818.7,1818.6,3.2078]